Cogmind - Beta 14 @@@ ROGUE MODE // 2024.09.04 @ 11:43:21 Player: Minty Result: Destroyed by Y-45 Defender with Beam Rifle Performance ------------- Evolutions (0) 0 Regions Visited (2) 400 Robots Destroyed (9) 45 Value Destroyed (257) 257 Prototype IDs (0) 0 Alien Tech Used (0) 0 Bonus (0) 0 TOTAL SCORE: 702 Bonus ------- None Cogmind --------- Core Integrity 0/250 Matter 295/300 Energy 56/100 System Corruption 0% Temperature Cool (30) Movement Rolling (100) Location -10/Mines Parts ------- > --- POWER (1) -------- (None) > --- PROPULSION (2) --- Compact Wheel > --- UTILITY (2) ------ Small Storage Unit Targeting Computer > --- WEAPON (2) ------- EM Pulse Gun > --- INVENTORY (8) ---- Seismic Detector Core Shielding Core Shielding Core Shielding Peak State ------------ > --- POWER ------------ Light Ion Engine > --- PROPULSION ------- Aluminum Leg Aluminum Leg > --- UTILITY ---------- Small Storage Unit Targeting Computer > --- WEAPON ----------- Light Assault Rifle Light Assault Rifle > --- INVENTORY -------- Light Ion Engine Light Treads Light Treads Compact Wheel Compact Wheel EM Pulse Gun [Rating: 7] Favorites ----------- Power Light Ion Engine Engine Light Ion Engine Propulsion Light Treads Treads Light Treads Leg Aluminum Leg Wheel Compact Wheel Utility Small Storage Unit Storage Small Storage Unit Processor Targeting Computer Weapon Light Assault Rifle Energy Gun Small Laser Ballistic Gun Light Assault Rifle Build | -11 -10 -10 ------- Run | Yrd Mat Min Slots Evolved . | . . . Power . | . . . Propulsion . | . . . Utility . | . . . Weapon . | . . . Parts Attached 8 | . 7 1 Power 1 | . 1 . Engine 1 | . 1 . Core . | . . . Reactor . | . . . Propulsion 4 | . 4 . Treads 2 | . 2 . Leg . | . . . Wheel 2 | . 2 . Hover . | . . . Flight . | . . . Utility 1 | . 1 . Device . | . . . Storage . | . . . Processor 1 | . 1 . Hackware . | . . . Protection . | . . . Artifact . | . . . Weapon 2 | . 1 1 Energy Gun 2 | . 1 1 Energy Cannon . | . . . Ballistic Gun . | . . . Ballistic Cannon . | . . . Launcher . | . . . Special Weapon . | . . . Impact Weapon . | . . . Slashing Weapon . | . . . Piercing Weapon . | . . . Special Melee Weapon . | . . . Unidentified Prototypes . | . . . Parts Lost 8 | . 6 2 Power 2 | . 2 . Propulsion 3 | . 2 1 Utility . | . . . Weapon 3 | . 2 1 Highest Loss Streak 8 | . 6 8 To Critical Strikes . | . . . Average Slot Usage (%) 93 | . 94 71 Engine 12 | . 12 . Treads 17 | . 18 . Leg 6 | . 6 . Wheel 3 | . 2 28 Storage 14 | . 14 14 Processor 13 | . 13 14 Energy Gun 1 | . 1 14 Ballistic Gun 24 | . 25 . Peak Build Rating 7 | . 7 5 Average Rating 6 | . 6 4 On Entrance 5 | 6 6 5 Naked Turns . | . . . Heaviest Build 10 | 10 10 6 Greatest Support 40 | 20 40 32 Greatest Overweight (x) 2 | . 2 . Average Overweight (x) . | . . . Largest Inventory Capacity 8 | . 8 8 Average Capacity 8 | . 8 8 Most Carried 8 | . 8 5 Average Carried 7 | . 7 4 Final Capacity 8 | 8 8 8 Final Carried 6 | 6 5 4 Class Distribution -------------------- 100% | Mutant Dominant Class ---------------- Mutant | -10/Materials Mutant | -10/Mines Resources | -11 -10 -10 ----------- Run | Yrd Mat Min Matter Collected 316 | 199 117 . Remotely . | . . . Salvage Created 344 | . 344 . Parts 17 | . 17 . Haulers Intercepted . | . . . Recyclers Shooed . | . . . Parts Field Recycled . | . . . Retrieved Matter . | . . . Parts Self-Destructed . | . . . Prevented . | . . . Kills | -11 -10 -10 ------- Run | Yrd Mat Min Combat Hostiles Destroyed 6 | . 6 . Guns 6 | . 6 . Classes Destroyed 4 | . 4 . Builder 1 | . 1 . Recycler 1 | . 1 . Operator 1 | . 1 . Grunt 6 | . 6 . Best Kill Streak 4 | . 4 . Combat Bots Only 2 | . 2 . Max Kills in Single Turn 1 | . 1 . Gunslinging . | . . . Exploded . | . . . Melee . | . . . Uniques/NPCs Destroyed . | . . . Combat | -11 -10 -10 -------- Run | Yrd Mat Min Hostile Shots Fired 132 | . 119 13 Missed 45 | . 42 3 Damage Taken 975 | . 834 141 Core 258 | . 201 57 Absorbed by Shields . | . . . Core Remaining (%) 100 | 100 . . Volleys Fired 41 | . 36 5 Largest 2 | . 2 1 Hottest 60 | . 60 40 Shots Fired 76 | . 71 5 Gun 76 | . 71 5 Cannon . | . . . Launcher . | . . . Special . | . . . Kinetic 70 | . 70 . Thermal 2 | . 1 1 Explosive . | . . . Electromagnetic 4 | . . 4 Robot Hit Streak 10 | . 10 6 Robot Miss Streak 4 | . 4 . Penetration Max . | . . . Secondary Targets . | . . . Shots Hit Robots 56 | . 51 5 Core Hits 24 | . 23 1 Critical Kills . | . . . Critical Parts Destroyed 1 | . 1 . Critical Strikes 1 | . 1 . Destroy 1 | . 1 . Melee Attacks . | . . . Impact . | . . . Slashing . | . . . Piercing . | . . . Sneak Attacks . | . . . Combat Hostiles . | . . . Follow-up Attacks . | . . . Damage Inflicted 478 | . 426 52 Guns 476 | . 424 52 Cannons . | . . . Explosions . | . . . Melee . | . . . Ramming 2 | . 2 . Kinetic 424 | . 424 . Thermal 10 | . . 10 Explosive . | . . . Electromagnetic 42 | . . 42 Impact . | . . . Slashing . | . . . Piercing . | . . . Highest Corruption . | . . . Average Corruption . | . . . Corruption Purged . | . . . Corruption Blocked . | . . . Overload Shots . | . . . Overflow Damage . | . . . Projectiles . | . . . Explosions . | . . . Melee . | . . . Knockbacks . | . . . Impact . | . . . Kinetic . | . . . Secondary . | . . . Self-Inflicted Damage . | . . . Shots . | . . . Rammed . | . . . Targets Rammed 1 | . 1 . Kicked . | . . . Crushed 1 | . 1 . Highest Temperature 40 | . 40 31 Average Temperature 12 | . 12 20 Received Heat Transfer 393 | . 330 63 Siege Activations . | . . . Robots Corrupted . | . . . Combat Hostiles . | . . . Parts Fried . | . . . Impact Corruptions . | . . . Robots Melted . | . . . Combat Hostiles . | . . . Parts Melted . | . . . Heat Transferred 25 | . . 25 Parts Sabotaged . | . . . Parts Stolen . | . . . Parts Stripped . | . . . Power Chain Reactions . | . . . Alert | -11 -10 -10 ------- Run | Yrd Mat Min Peak Influence 155 | . 155 67 Initial 52 | . . 52 Average 62 | . 63 54 Maximum Alert Level . | . . . Low Security (%) 100 | . 100 100 Level 1 . | . . . Level 2 . | . . . Level 3 . | . . . Level 4 . | . . . Level 5 . | . . . High Security . | . . . Max Security . | . . . Squads Dispatched 2 | . 2 . Investigation . | . . . Extermination . | . . . Reinforcement 2 | . 2 . Assault . | . . . Garrison . | . . . Intercept . | . . . Searches Triggered . | . . . Construction Impeded . | . . . Haulers Reinforced . | . . . Active Scanning Responses . | . . . Cargo Convoy Interrupts . | . . . Stealth | -11 -10 -10 --------- Run | Yrd Mat Min Distress Signals 3 | . 3 . Communications Jammed . | . . . Distress Signals . | . . . Times Spotted 17 | . 15 2 Peak Tracking Total 8 | . 8 2 Tactical Retreats . | . . . Traps | -11 -10 -10 ------- Run | Yrd Mat Min Traps Triggered . | . . . Indirectly . | . . . Trap Hack Attempts . | . . . Triggered . | . . . Disarmed . | . . . Reprogrammed . | . . . Reused . | . . . Traps Extracted . | . . . Installed . | . . . Triggered . | . . . Machines | -11 -10 -10 ---------- Run | Yrd Mat Min Machines Disabled . | . . . Max in Single Turn . | . . . Machines Repaired . | . . . Machines Dismantled . | . . . Machines Sabotaged . | . . . Overloaded Fab Kills . | . . . Hacking | -11 -10 -10 --------- Run | Yrd Mat Min Machines Accessed . | . . . Terminals . | . . . Fabricators . | . . . Repair Stations . | . . . Recycling Units . | . . . Scanalyzers . | . . . Garrison Access . | . . . Total Hacks . | . . . Successful . | . . . Failed . | . . . Catastrophic . | . . . Database Lockouts . | . . . Manual . | . . . Terminals . | . . . Fabricators . | . . . Repair Stations . | . . . Recycling Units . | . . . Scanalyzers . | . . . Garrison Access . | . . . Terminal Hacks . | . . . Fabricator Hacks . | . . . Repair Station Hacks . | . . . Recycling Unit Hacks . | . . . Scanalyzer . | . . . Garrison Access Hacks . | . . . Unauthorized Hacks . | . . . Terminals . | . . . Fabricators . | . . . Repair Stations . | . . . Recycling Units . | . . . Scanalyzers . | . . . Garrison Access . | . . . Data Cores Recovered . | . . . Used . | . . . Hacking Detections . | . . . Full Trace Events . | . . . Feedback Events . | . . . Feedback Blocked . | . . . Robot Schematics Acquired . | . . . Robots Built . | . . . Authchips . | . . . Time . | . . . Total Robot Build Rating . | . . . Part Schematics Acquired . | . . . Parts Built . | . . . Authchips . | . . . Time . | . . . Total Part Build Rating . | . . . Parts Repaired . | . . . Time . | . . . Parts Recycled . | . . . Recycled Matter . | . . . Retrieved Matter . | . . . Retrieved Components . | . . . Parts Scanalyzed . | . . . Part Schematics Acquired . | . . . Parts Damaged . | . . . Bothacking | -11 -10 -10 ------------ Run | Yrd Mat Min Used RIF Installer . | . . . Robots Hacked . | . . . Non-combat . | . . . Combat . | . . . Robot Hacks Applied . | . . . Relay Couplers Released . | . . . Fabnet Peak Effective % . | . . . Robots Rewired . | . . . Allies Hacked . | . . . Hacks Repelled . | . . . Allies | -11 -10 -10 -------- Run | Yrd Mat Min Total Allies . | . . . Largest Group . | . . . Highest-Rated Group . | . . . Highest-Rated Ally . | . . . Total Orders . | . . . Ally Attacks . | . . . Total Damage . | . . . Kills . | . . . Allies Corrupted . | . . . Allies Melted . | . . . Intel | -11 -10 -10 ------- Run | Yrd Mat Min Robot Analysis Total . | . . . Derelict Logs Recovered . | . . . Drone Launches . | . . . Drone Recoveries . | . . . Exploration | -11 -10 -10 ------------- Run | Yrd Mat Min Turns Passed 283 | . 269 14 Spaces Moved 122 | 1 117 4 Core 1 | . 1 . Treads 59 | . 59 . Legs 46 | 1 45 . Wheels 16 | . 12 4 Hover . | . . . Flight . | . . . Fastest Speed 100 | 120 100 100 Average Speed 136 | 120 138 100 Slowest Speed 160 | 120 160 100 Overloaded Moves . | . . . Propulsion Burnouts . | . . . Robots Hopped . | . . . Cave-ins Triggered . | . . . Exploration Rate (%) 15 | 1 35 10 Regions Visited 2 Branch Regions 1 Pre-discovered Areas . | . . . Known Exits Taken . | . . . Unknown Exits Taken 2 | 1 1 . Scrap Searched . | . . . Spaces Dug . | . . . Terrain Destroyed . | . . . Melee . | . . . Projectile . | . . . AOE . | . . . Terrain Rammed . | . . . Walls Destroyed . | . . . Machines Disabled . | . . . Actions | -11 -10 -10 --------- Run | Yrd Mat Min Total 176 | . 166 10 Wait . | . . . Move 120 | . 116 4 Hop . | . . . Pick Up 4 | . 4 . Fast Attach 2 | . 2 . Attach 6 | . 5 1 Detach . | . . . Swap . | . . . Drop 2 | . 2 . Fire 41 | . 36 5 Melee . | . . . Ram . | . . . Kick . | . . . Crush 1 | . 1 . Escape Stasis . | . . . Rewire . | . . . Trap . | . . . Miscellaneous . | . . . Route ------- -11/Scrapyard -10/Materials -10/Mines History --------- Turn | Location | Event 1 | -11/Scrapyard | Discovered new exit (range 0) 1 | -11/Scrapyard | Entered Materials 189 | -10/Materials | Discovered new exit (range 8) 247 | -10/Materials | Core integrity fell below 50% 262 | -10/Materials | Core integrity fell below 20% 270 | -10/Materials | Entered Mines 284 | -10/Mines | Destroyed by Y-45 Defender with Beam Rifle Last Messages --------------- 00249_ G-47 Trooper destroyed. 00251_ Acquired 14 matter. 00252_ Lgt. Ion Engine destroyed. 00254_ Acquired 10 matter. 00256_ Acquired Sml. Laser. 00257_ Lgt. Assault Rifle destroyed. 00259_ R-06 Scavenger collects Aluminum Leg. 00260_ K-01 Serf collects debris. 00262_ R-06 Scavenger collects Particle Gun. 00262_ K-01 Serf collects debris. 00263_ Acquired 6 matter. 00264_ K-01 Serf collects debris. 00266_ R-06 Scavenger collects Heat Sink. 00269_ K-01 Serf collects debris. LOCATION=UNKNOWN GOAL=ESCAPE Something is scanning the area. 00276_ Sml. Laser destroyed. 00281_ Critical hit (Burn: +37). 00281_ Com. Wheel destroyed. Map ----- +----------------------------------------------------+ | | | | | | | | | | | ???????????????????????????????????????? | | ???????????????????????????????????????? | | ???????????????????????????????????????? | | ???????????????????????????????????????? | | ???????????????????????????????????????? | | ???????????????????????????????????????? | | ???????????????????????????????????????? | | ???????????????????????????????????????? | | ???????????????????????????????????????? | | ???????????????????????????????????????? | | ???????????????????????????????????????? | | ???????????????????????????????????????? | | ???????????????????????????????????????? | | ???????????????????????????????????????? | | ???????????????????????????????????????? | | ????????????????????????????###??????#?? | | ????????????????????###?#### ##### ??? | | ???????????????????##!!## ????? | | ???????????????????#"!] # ??????? | | ???????????????????# Y / # ##??????? | | ???????????????????# Y /@ # ####???? | | ???????????????????#"!! # ##??? | | ???????????????????##!?## #??? | | ???????????????????????# #??? | | ???????????????????????# ##??? | | ??????????????????????# #???? | | ??????????????????????# #???? | | ?????????????????????# ##???? | | ????????????????????# #????? | | ???????????????????# #????? | | ???????????????????# #???? | | ???????????????????# #???? | | ???????????????????###### ##???? | | ????????????????????????### ##????? | | ???????????????????????????# ##?????? | | ???????????????????????????? #??????? | | ????????????????????????????# ##??????? | | ????????????????????????????? #???????? | | ????????????????????????????? ????????? | | ???????????????????????????????????????? | | ???????????????????????????????????????? | | ???????????????????????????????????????? | | ???????????????????????????????????????? | | ???????????????????????????????????????? | | ???????????????????????????????????????? | +----------------------------------------------------+ Best States ------------- Heat Dissipation 25 Energy Generation 10 Energy Capacity 125 Matter Stores 300 Matter Capacity 300 Sight Range 16 Terrain Scan Density 10 Evasion (%) 55 Targeting Accuracy 5 Recoil Reduction 2 Item Schematics ----------------- None Robot Schematics ------------------ None Fabricated ------------ Nothing Alien Tech Used ----------------- None Achievements -------------- None Challenges ------------ None Game ------ Seed PlatingImpulseKinecellerator Manual? 0 Play Time 00:03:36 Cumulative 916.9 hours Start 2024.09.04 @ 11:36:35 End 2024.09.04 @ 11:43:21 Sessions 1 Manual Loads 0 Difficulty Rogue Special Mode None Game No. 1108 Rogue 828 Adventurer 124 Explorer 156 Win Type - Total 39 Types 28/0/8/1/1/0/0/1/0 Lore% 79 Gallery% 90 Achievement% 78 Wizard Run 0 Options --------- Layout 0 ASCII 0 Keyboard 1 Movement Numpad Keybinds 0 Fullscreen 2 Font 18/X11 Map View 76x50 Zoom Use 2% Tactical HUD 1 Map Filters NONE Filters NONE Steam 1 RUN: 7848d1a0-811f-4770-9b03-f7305bb0978e